[Event "Live Chess"]
[Site "Chess.com"]
[Date "2023.05.21"]
[Round "-"]
[White "BostonStrangler"]
[Black "ramses-IIG"]
[Result "1-0"]
[WhiteElo "2068"]
[BlackElo "870"]
[TimeControl "300"]
[EndTime "20:59:38 PDT"]
[Termination "BostonStrangler won by checkmate"]

1. Nf3 {[%clk 0:04:56.9]} 1... d5 {[%clk 0:04:58.3]} 2. c4 {[%clk 0:04:55]} 2...
e6 {[%clk 0:04:54.1]} 3. g3 {[%clk 0:04:53.5]} 3... Nc6 {[%clk 0:04:52.3]} 4.
Bg2 {[%clk 0:04:52.7]} 4... e5 {[%clk 0:04:51.5]} 5. cxd5 {[%clk 0:04:51.1]}
5... Qxd5 {[%clk 0:04:49.4]} 6. Nc3 {[%clk 0:04:50.6]} 6... Qc5 {[%clk
0:04:40.2]} 7. O-O {[%clk 0:04:48]} 7... Bg4 {[%clk 0:04:34.9]} 8. d3 {[%clk
0:04:43.9]} 8... Nf6 {[%clk 0:04:14.8]} 9. Be3 {[%clk 0:04:36.7]} 9... Qb4
{[%clk 0:04:12.4]} 10. Qd2 {[%clk 0:04:18.7]} 10... Bc5 {[%clk 0:04:01]} 11. a3
{[%clk 0:04:09.4]} 11... Qb6 {[%clk 0:03:57.4]} 12. Na4 {[%clk 0:04:06.9]} 12...
Bxe3 {[%clk 0:03:52.8]} 13. Nxb6 {[%clk 0:04:05.5]} 13... Bxd2 {[%clk
0:03:51.4]} 14. Nxa8 {[%clk 0:04:04.4]} 14... Bxf3 {[%clk 0:03:41.5]} 15. Bxf3
{[%clk 0:04:00.1]} 15... O-O {[%clk 0:03:41.4]} 16. Nxc7 {[%clk 0:03:54.5]}
16... Na5 {[%clk 0:03:25.8]} 17. b4 {[%clk 0:03:50.4]} 17... Nc6 {[%clk
0:03:24.2]} 18. Nd5 {[%clk 0:03:44.7]} 18... Nxd5 {[%clk 0:03:20.9]} 19. Bxd5
{[%clk 0:03:43.6]} 19... Bc3 {[%clk 0:03:15.6]} 20. Ra2 {[%clk 0:03:34.6]} 20...
Rd8 {[%clk 0:03:11.9]} 21. Bxc6 {[%clk 0:03:33.1]} 21... bxc6 {[%clk 0:03:11.6]}
22. Rc2 {[%clk 0:03:32]} 22... Bd4 {[%clk 0:03:03.8]} 23. Rxc6 {[%clk
0:03:30.1]} 23... f6 {[%clk 0:02:58.9]} 24. Kg2 {[%clk 0:03:26.3]} 24... h6
{[%clk 0:02:57.4]} 25. a4 {[%clk 0:03:24.6]} 25... Kh7 {[%clk 0:02:54.6]} 26. b5
{[%clk 0:03:13.7]} 26... Bb6 {[%clk 0:02:50.6]} 27. Ra1 {[%clk 0:03:09.2]} 27...
Kg6 {[%clk 0:02:47.1]} 28. a5 {[%clk 0:03:07.6]} 28... Bd4 {[%clk 0:02:42.9]}
29. Rb1 {[%clk 0:03:03.2]} 29... Rb8 {[%clk 0:02:39]} 30. e3 {[%clk 0:03:01]}
30... Bxe3 {[%clk 0:02:24]} 31. fxe3 {[%clk 0:02:58.7]} 31... Kf5 {[%clk
0:02:20.7]} 32. Rc7 {[%clk 0:02:57]} 32... a6 {[%clk 0:02:16.7]} 33. b6 {[%clk
0:02:55.9]} 33... g6 {[%clk 0:02:12.3]} 34. Rc6 {[%clk 0:02:53.5]} 34... g5
{[%clk 0:02:11.2]} 35. e4+ {[%clk 0:02:51.1]} 35... Kg6 {[%clk 0:02:08.6]} 36.
Rf1 {[%clk 0:02:49.4]} 36... Kh5 {[%clk 0:02:04.5]} 37. Rfxf6 {[%clk 0:02:46.9]}
37... Rh8 {[%clk 0:02:02.2]} 38. h3 {[%clk 0:02:37.6]} 38... g4 {[%clk
0:02:00.5]} 39. Rf5# {[%clk 0:02:36.5]} 1-0

[Event "Live Chess"]
[Site "Chess.com"]
[Date "2023.05.21"]
[Round "-"]
[White "Fazer180"]
[Black "Conradical12"]
[Result "0-1"]
[WhiteElo "1738"]
[BlackElo "1645"]
[TimeControl "300"]
[EndTime "21:00:20 PDT"]
[Termination "Conradical12 won by resignation"]

1. e4 {[%clk 0:04:58.3]} 1... e5 {[%clk 0:04:58.6]} 2. Nf3 {[%clk 0:04:56.8]}
2... Nc6 {[%clk 0:04:57.1]} 3. d4 {[%clk 0:04:56.4]} 3... exd4 {[%clk
0:04:52.6]} 4. Nxd4 {[%clk 0:04:56.3]} 4... Nf6 {[%clk 0:04:51.2]} 5. Nc3 {[%clk
0:04:54.6]} 5... Bc5 {[%clk 0:04:48.7]} 6. Be3 {[%clk 0:04:49]} 6... Bxd4 {[%clk
0:04:40.5]} 7. Bxd4 {[%clk 0:04:47.5]} 7... O-O {[%clk 0:04:39.6]} 8. Bc4 {[%clk
0:04:36.4]} 8... Re8 {[%clk 0:04:35.8]} 9. f3 {[%clk 0:04:32.9]} 9... d5 {[%clk
0:04:26.7]} 10. Bxf6 {[%clk 0:04:23.5]} 10... Qxf6 {[%clk 0:04:17.1]} 11. Bxd5
{[%clk 0:04:15.4]} 11... Nb4 {[%clk 0:03:48.3]} 12. O-O {[%clk 0:04:01.7]} 12...
c6 {[%clk 0:03:44.7]} 13. Bb3 {[%clk 0:03:56.9]} 13... Qg6 {[%clk 0:03:43.3]}
14. a3 {[%clk 0:03:48.7]} 14... Bh3 {[%clk 0:03:38]} 15. Qe2 {[%clk 0:03:42.1]}
15... Na6 {[%clk 0:03:32]} 16. Kh1 {[%clk 0:03:33.2]} 16... Be6 {[%clk
0:03:24.4]} 17. Bxe6 {[%clk 0:03:26.7]} 17... Rxe6 {[%clk 0:03:22]} 18. Rfd1
{[%clk 0:03:24.1]} 18... Nc7 {[%clk 0:03:15.2]} 19. Rd7 {[%clk 0:03:18.6]} 19...
Ne8 {[%clk 0:03:13.1]} 20. Rxb7 {[%clk 0:03:09.5]} 20... Nf6 {[%clk 0:03:12.3]}
21. Rd1 {[%clk 0:03:04.2]} 21... Nh5 {[%clk 0:03:09.7]} 22. Rbd7 {[%clk
0:02:53.2]} 22... Qh6 {[%clk 0:03:04.5]} 23. Kg1 {[%clk 0:02:43.1]} 23... Nf4
{[%clk 0:02:55.9]} 24. Qf2 {[%clk 0:02:34.4]} 24... Rf8 {[%clk 0:02:41.4]} 25.
Rxa7 {[%clk 0:02:31.8]} 25... Rg6 {[%clk 0:02:39.6]} 26. h4 {[%clk 0:01:50.5]}
26... Nh3+ {[%clk 0:02:35]} 27. Kf1 {[%clk 0:01:43.8]} 27... Nxf2 {[%clk
0:02:33.8]} 28. Kxf2 {[%clk 0:01:43.3]} 28... Qxh4+ {[%clk 0:02:25.1]} 29. Ke2
{[%clk 0:01:42.2]} 29... Rxg2+ {[%clk 0:02:21.3]} 30. Kd3 {[%clk 0:01:40.6]}
30... Qf2 {[%clk 0:02:18.9]} 31. Kc4 {[%clk 0:01:35.8]} 31... Qxf3 {[%clk
0:02:13.7]} 32. Rdd7 {[%clk 0:01:33]} 32... Qf1+ {[%clk 0:01:53.1]} 33. Kb3
{[%clk 0:01:31.1]} 33... Rb8+ {[%clk 0:01:49.4]} 34. Ka4 {[%clk 0:01:27.8]}
34... Qc4+ {[%clk 0:01:44.5]} 35. Ka5 {[%clk 0:01:25]} 35... Rg5+ {[%clk
0:01:40.3]} 0-1

[Event "Live Chess"]
[Site "Chess.com"]
[Date "2023.05.21"]
[Round "-"]
[White "mirandaasilva"]
[Black "Singapourfeuj"]
[Result "0-1"]
[WhiteElo "1689"]
[BlackElo "2172"]
[TimeControl "300"]
[EndTime "21:01:41 PDT"]
[Termination "Singapourfeuj won by checkmate"]

1. Nf3 {[%clk 0:04:55.8]} 1... Nf6 {[%clk 0:04:58.8]} 2. c4 {[%clk 0:04:53.7]}
2... g6 {[%clk 0:04:57.4]} 3. e3 {[%clk 0:04:52]} 3... Bg7 {[%clk 0:04:56.5]} 4.
d4 {[%clk 0:04:51.8]} 4... O-O {[%clk 0:04:55.7]} 5. Be2 {[%clk 0:04:51.3]} 5...
d5 {[%clk 0:04:54.8]} 6. cxd5 {[%clk 0:04:47.5]} 6... Nxd5 {[%clk 0:04:53.3]} 7.
O-O {[%clk 0:04:46.8]} 7... c5 {[%clk 0:04:51.7]} 8. Nc3 {[%clk 0:04:39.7]} 8...
cxd4 {[%clk 0:04:50.3]} 9. Nxd4 {[%clk 0:04:37.8]} 9... Nxc3 {[%clk 0:04:49.2]}
10. bxc3 {[%clk 0:04:35.5]} 10... Nc6 {[%clk 0:04:48.5]} 11. Nxc6 {[%clk
0:04:30.4]} 11... bxc6 {[%clk 0:04:46.9]} 12. Qa4 {[%clk 0:04:03.2]} 12... Bf5
{[%clk 0:04:40.4]} 13. Ba3 {[%clk 0:03:57.5]} 13... Qc7 {[%clk 0:04:30.4]} 14.
Rac1 {[%clk 0:03:47.1]} 14... Rfd8 {[%clk 0:04:28.4]} 15. Bf3 {[%clk 0:03:43.2]}
15... Rac8 {[%clk 0:04:24.2]} 16. Bc5 {[%clk 0:03:41]} 16... Rd7 {[%clk
0:04:19.7]} 17. c4 {[%clk 0:03:10]} 17... e5 {[%clk 0:04:10.6]} 18. e4 {[%clk
0:03:06.2]} 18... Be6 {[%clk 0:04:09.6]} 19. Rfd1 {[%clk 0:03:01]} 19... Rcd8
{[%clk 0:04:07.4]} 20. h3 {[%clk 0:02:56.3]} 20... h5 {[%clk 0:04:04.9]} 21. Be2
{[%clk 0:02:34.1]} 21... Rxd1+ {[%clk 0:03:59.1]} 22. Rxd1 {[%clk 0:02:31.8]}
22... Rxd1+ {[%clk 0:03:57.3]} 23. Bxd1 {[%clk 0:02:28.4]} 23... a5 {[%clk
0:03:56.1]} 24. Be3 {[%clk 0:02:20.8]} 24... Bf8 {[%clk 0:03:53.8]} 25. c5
{[%clk 0:02:17.7]} 25... Qb7 {[%clk 0:03:41.1]} 26. Bb3 {[%clk 0:02:15.6]} 26...
Bxb3 {[%clk 0:03:38.2]} 27. axb3 {[%clk 0:02:15.5]} 27... Qb4 {[%clk 0:03:36.1]}
28. Qa2 {[%clk 0:02:10.9]} 28... Bxc5 {[%clk 0:03:33.5]} 29. Bd2 {[%clk
0:02:03.2]} 29... Qb5 {[%clk 0:03:26.7]} 30. Qxa5 {[%clk 0:01:56.1]} 30... Kg7
{[%clk 0:03:24.1]} 31. Qc7 {[%clk 0:01:38.2]} 31... Bd4 {[%clk 0:03:20.2]} 32.
Qa5 {[%clk 0:01:19.8]} 32... Qe2 {[%clk 0:03:17.6]} 33. Be1 {[%clk 0:01:11.2]}
33... Qxe4 {[%clk 0:03:16.5]} 34. b4 {[%clk 0:01:09]} 34... Qxe1+ {[%clk
0:03:13.5]} 35. Kh2 {[%clk 0:01:06.5]} 35... Qe4 {[%clk 0:03:10.7]} 36. Qa8
{[%clk 0:01:01.9]} 36... Bxf2 {[%clk 0:03:08.3]} 37. Qb7 {[%clk 0:00:59.8]}
37... Qf4+ {[%clk 0:03:07]} 38. Kh1 {[%clk 0:00:57.2]} 38... Qc1+ {[%clk
0:03:05.7]} 39. Kh2 {[%clk 0:00:55.9]} 39... Qg1# {[%clk 0:03:04.6]} 0-1

[Event "Live Chess"]
[Site "Chess.com"]
[Date "2023.05.21"]
[Round "-"]
[White "Doge_Dandolo"]
[Black "smoggyrabbit"]
[Result "1-0"]
[WhiteElo "1924"]
[BlackElo "1750"]
[TimeControl "300"]
[EndTime "21:02:33 PDT"]
[Termination "Doge_Dandolo won on time"]

1. Nf3 {[%clk 0:04:58.8]} 1... e6 {[%clk 0:04:55.1]} 2. c4 {[%clk 0:04:57.2]}
2... f5 {[%clk 0:04:53.2]} 3. d3 {[%clk 0:04:55.4]} 3... Nf6 {[%clk 0:04:51.9]}
4. g3 {[%clk 0:04:54.2]} 4... Be7 {[%clk 0:04:47.1]} 5. Bg2 {[%clk 0:04:53.1]}
5... O-O {[%clk 0:04:45.8]} 6. O-O {[%clk 0:04:52.2]} 6... d6 {[%clk 0:04:44.8]}
7. Nc3 {[%clk 0:04:51.1]} 7... e5 {[%clk 0:04:43.2]} 8. Bg5 {[%clk 0:04:47.4]}
8... Nbd7 {[%clk 0:04:37.2]} 9. b4 {[%clk 0:04:41.4]} 9... h6 {[%clk 0:04:34.9]}
10. Bd2 {[%clk 0:04:39.4]} 10... Qe8 {[%clk 0:04:11.4]} 11. Rc1 {[%clk
0:04:34.1]} 11... c6 {[%clk 0:03:08.4]} 12. b5 {[%clk 0:04:29.8]} 12... Nb6
{[%clk 0:02:56.3]} 13. a4 {[%clk 0:04:27]} 13... c5 {[%clk 0:02:13.7]} 14. a5
{[%clk 0:04:24.6]} 14... Nbd7 {[%clk 0:02:11.4]} 15. Ne1 {[%clk 0:04:22.4]}
15... Rb8 {[%clk 0:01:38.7]} 16. Nc2 {[%clk 0:04:17.7]} 16... Ng4 {[%clk
0:01:26.7]} 17. Nd5 {[%clk 0:04:13.4]} 17... Ngf6 {[%clk 0:00:58.3]} 18. Nce3
{[%clk 0:04:11]} 18... Nxd5 {[%clk 0:00:55.7]} 19. Nxd5 {[%clk 0:04:09.8]} 19...
Nf6 {[%clk 0:00:52.8]} 20. Qc2 {[%clk 0:03:53.4]} 20... Bd8 {[%clk 0:00:45.7]}
21. f4 {[%clk 0:03:44.7]} 21... exf4 {[%clk 0:00:37.9]} 22. Bxf4 {[%clk
0:03:41.8]} 22... Nxd5 {[%clk 0:00:28.6]} 23. Bxd5+ {[%clk 0:03:39.8]} 23... Be6
{[%clk 0:00:19]} 24. Bxd6 {[%clk 0:03:23.5]} 24... Bxd5 {[%clk 0:00:16.7]} 25.
cxd5 {[%clk 0:03:22.1]} 25... Qe3+ {[%clk 0:00:14.6]} 26. Rf2 {[%clk 0:03:18.1]}
26... Bf6 {[%clk 0:00:11.8]} 27. Bxb8 {[%clk 0:03:15.8]} 27... Rxb8 {[%clk
0:00:10.3]} 28. Kg2 {[%clk 0:03:13.7]} 28... Bd4 {[%clk 0:00:08.7]} 29. Rf3
{[%clk 0:03:11.7]} 29... Qe5 {[%clk 0:00:07.1]} 30. Re1 {[%clk 0:03:03]} 30...
Qxd5 {[%clk 0:00:05.2]} 31. Qc4 {[%clk 0:03:01.9]} 31... Qxc4 {[%clk 0:00:04.3]}
32. dxc4 {[%clk 0:03:00.6]} 32... Re8 {[%clk 0:00:02.9]} 33. e3 {[%clk 0:02:54]}
33... Bc3 {[%clk 0:00:02]} 34. Re2 {[%clk 0:02:48.8]} 1-0

[Event "Live Chess"]
[Site "Chess.com"]
[Date "2023.05.21"]
[Round "-"]
[White "LutherSullivan"]
[Black "Long1968"]
[Result "1-0"]
[WhiteElo "2211"]
[BlackElo "1062"]
[TimeControl "300"]
[EndTime "21:02:39 PDT"]
[Termination "LutherSullivan won on time"]

1. d4 {[%clk 0:04:55.5]} 1... Nf6 {[%clk 0:04:54.5]} 2. Nf3 {[%clk 0:04:54.2]}
2... e6 {[%clk 0:04:51.5]} 3. Bg5 {[%clk 0:04:53]} 3... Be7 {[%clk 0:04:45.5]}
4. Nbd2 {[%clk 0:04:51.9]} 4... O-O {[%clk 0:04:39.2]} 5. e4 {[%clk 0:04:50.5]}
5... h6 {[%clk 0:04:33.1]} 6. Bh4 {[%clk 0:04:49.2]} 6... Nc6 {[%clk 0:04:21.3]}
7. c3 {[%clk 0:04:46.5]} 7... d5 {[%clk 0:04:03.1]} 8. e5 {[%clk 0:04:45.4]}
8... Nd7 {[%clk 0:03:49.1]} 9. Bxe7 {[%clk 0:04:25.8]} 9... Qxe7 {[%clk
0:03:45.4]} 10. Bd3 {[%clk 0:04:25.3]} 10... f6 {[%clk 0:03:39.2]} 11. exf6
{[%clk 0:03:50.4]} 11... Qxf6 {[%clk 0:03:34.9]} 12. O-O {[%clk 0:03:49]} 12...
e5 {[%clk 0:03:28.8]} 13. dxe5 {[%clk 0:03:48.1]} 13... Ndxe5 {[%clk 0:03:24.2]}
14. Nxe5 {[%clk 0:03:46.7]} 14... Nxe5 {[%clk 0:03:21]} 15. Be2 {[%clk
0:03:46.2]} 15... Bd7 {[%clk 0:03:07.9]} 16. Nf3 {[%clk 0:03:44.2]} 16... Bc6
{[%clk 0:02:54.6]} 17. Qd4 {[%clk 0:03:22.3]} 17... Nxf3+ {[%clk 0:02:35.3]} 18.
Bxf3 {[%clk 0:03:20]} 18... Rad8 {[%clk 0:02:01.5]} 19. Rad1 {[%clk 0:03:10.3]}
19... Bb5 {[%clk 0:01:12]} 20. Bxd5+ {[%clk 0:02:55.8]} 20... Kh8 {[%clk
0:00:52.8]} 21. Qxf6 {[%clk 0:02:19.6]} 21... Rxf6 {[%clk 0:00:40.9]} 22. c4
{[%clk 0:02:18.4]} 22... Rfd6 {[%clk 0:00:27]} 23. b3 {[%clk 0:02:05.1]} 23...
c6 {[%clk 0:00:15]} 24. Bf3 {[%clk 0:02:02.7]} 24... Ba6 {[%clk 0:00:05.1]} 25.
Rxd6 {[%clk 0:01:59.9]} 25... Rxd6 {[%clk 0:00:02.1]} 26. Rd1 {[%clk 0:01:59.5]}
1-0

[Event "Live Chess"]
[Site "Chess.com"]
[Date "2023.05.21"]
[Round "-"]
[White "raminguy"]
[Black "Pablo_dmp"]
[Result "1-0"]
[WhiteElo "1937"]
[BlackElo "1844"]
[TimeControl "300"]
[EndTime "21:02:53 PDT"]
[Termination "raminguy won by resignation"]

1. d4 {[%clk 0:04:58.2]} 1... Nf6 {[%clk 0:04:54.8]} 2. Nc3 {[%clk 0:04:58.1]}
2... e6 {[%clk 0:04:53.2]} 3. e4 {[%clk 0:04:57]} 3... d5 {[%clk 0:04:51]} 4.
Bg5 {[%clk 0:04:55]} 4... h6 {[%clk 0:04:48.9]} 5. Bxf6 {[%clk 0:04:53.6]} 5...
Qxf6 {[%clk 0:04:46.9]} 6. exd5 {[%clk 0:04:52.8]} 6... exd5 {[%clk 0:04:45.3]}
7. Nxd5 {[%clk 0:04:50.2]} 7... Qe6+ {[%clk 0:04:41.9]} 8. Ne3 {[%clk
0:04:48.6]} 8... Bd6 {[%clk 0:04:26.6]} 9. Nf3 {[%clk 0:04:46.7]} 9... Nd7
{[%clk 0:04:21.6]} 10. Be2 {[%clk 0:04:40.6]} 10... Nf6 {[%clk 0:04:17.2]} 11.
O-O {[%clk 0:04:37.9]} 11... g5 {[%clk 0:04:12]} 12. Bc4 {[%clk 0:04:34.3]}
12... Qd7 {[%clk 0:04:08.1]} 13. Ne5 {[%clk 0:04:09.1]} 13... Bxe5 {[%clk
0:04:02.1]} 14. dxe5 {[%clk 0:04:07.6]} 14... Nh5 {[%clk 0:03:57]} 15. Nd5
{[%clk 0:04:01]} 15... c6 {[%clk 0:03:41.3]} 16. Qxh5 {[%clk 0:03:38.6]} 16...
cxd5 {[%clk 0:03:38.9]} 17. Rad1 {[%clk 0:03:37.3]} 17... dxc4 {[%clk
0:03:33.3]} 18. Rxd7 {[%clk 0:03:34.9]} 18... Bxd7 {[%clk 0:03:33.2]} 19. Rd1
{[%clk 0:03:31.6]} 19... Be6 {[%clk 0:03:31.5]} 20. Rd6 {[%clk 0:03:29.4]} 20...
Rd8 {[%clk 0:03:26.5]} 21. Rxe6+ {[%clk 0:03:27.6]} 21... Kf8 {[%clk 0:03:22.5]}
22. Rd6 {[%clk 0:03:26.5]} 1-0

[Event "Live Chess"]
[Site "Chess.com"]
[Date "2023.05.21"]
[Round "-"]
[White "Conradical12"]
[Black "BostonStrangler"]
[Result "0-1"]
[WhiteElo "1644"]
[BlackElo "2069"]
[TimeControl "300"]
[EndTime "21:03:14 PDT"]
[Termination "BostonStrangler won by checkmate"]

1. e4 {[%clk 0:04:58.2]} 1... c5 {[%clk 0:04:59]} 2. Nf3 {[%clk 0:04:56.6]} 2...
g6 {[%clk 0:04:58.6]} 3. Nc3 {[%clk 0:04:54.3]} 3... Nc6 {[%clk 0:04:56]} 4. Bc4
{[%clk 0:04:53.6]} 4... Bg7 {[%clk 0:04:53.3]} 5. d3 {[%clk 0:04:52.8]} 5... a6
{[%clk 0:04:50.3]} 6. Be3 {[%clk 0:04:52.1]} 6... d6 {[%clk 0:04:42.4]} 7. a4
{[%clk 0:04:48.4]} 7... e6 {[%clk 0:04:36]} 8. Qd2 {[%clk 0:04:46]} 8... Nd4
{[%clk 0:04:30.8]} 9. O-O-O {[%clk 0:04:42.6]} 9... Bd7 {[%clk 0:04:23.2]} 10.
Ne2 {[%clk 0:04:30.8]} 10... Nxf3 {[%clk 0:04:15.1]} 11. gxf3 {[%clk 0:04:26.5]}
11... b5 {[%clk 0:04:15]} 12. Ba2 {[%clk 0:04:22.9]} 12... bxa4 {[%clk 0:04:06]}
13. f4 {[%clk 0:04:17.7]} 13... Qb6 {[%clk 0:03:57.4]} 14. Nc3 {[%clk
0:04:08.6]} 14... Rb8 {[%clk 0:03:51.4]} 15. b3 {[%clk 0:04:01.3]} 15... axb3
{[%clk 0:03:44.9]} 16. Bxb3 {[%clk 0:03:56.7]} 16... Qb4 {[%clk 0:03:40.9]} 17.
f5 {[%clk 0:03:43.9]} 17... Bxc3 {[%clk 0:03:38.2]} 18. Qe2 {[%clk 0:03:41]}
18... Qa3+ {[%clk 0:03:36.4]} 19. Kb1 {[%clk 0:03:39.1]} 19... Qb2# {[%clk
0:03:35.6]} 0-1

[Event "Live Chess"]
[Site "Chess.com"]
[Date "2023.05.21"]
[Round "-"]
[White "ramses-IIG"]
[Black "mirandaasilva"]
[Result "0-1"]
[WhiteElo "870"]
[BlackElo "1689"]
[TimeControl "300"]
[EndTime "21:03:44 PDT"]
[Termination "mirandaasilva won by resignation"]

1. e4 {[%clk 0:04:55.7]} 1... c6 {[%clk 0:04:58.8]} 2. Nf3 {[%clk 0:04:55.6]}
2... d5 {[%clk 0:04:58.2]} 3. e5 {[%clk 0:04:53.8]} 3... Bf5 {[%clk 0:04:55.9]}
4. d4 {[%clk 0:04:53.7]} 4... e6 {[%clk 0:04:54.3]} 5. c3 {[%clk 0:04:48.1]}
5... c5 {[%clk 0:04:53.5]} 6. Qb3 {[%clk 0:04:46.6]} 6... cxd4 {[%clk
0:04:53.4]} 7. Qxb7 {[%clk 0:04:43.8]} 7... Nd7 {[%clk 0:04:52.3]} 8. cxd4
{[%clk 0:04:40.3]} 8... Rc8 {[%clk 0:04:47.8]} 9. Bg5 {[%clk 0:04:30.4]} 9...
Qa5+ {[%clk 0:04:43.3]} 10. Nfd2 {[%clk 0:04:15]} 10... Rb8 {[%clk 0:04:31.9]}
11. Qc6 {[%clk 0:03:48.4]} 11... Ne7 {[%clk 0:04:27]} 12. Qc2 {[%clk 0:03:44.3]}
12... Bxc2 {[%clk 0:04:24.2]} 0-1

[Event "Live Chess"]
[Site "Chess.com"]
[Date "2023.05.21"]
[Round "-"]
[White "KeithArkell"]
[Black "yarek"]
[Result "1-0"]
[WhiteElo "2556"]
[BlackElo "1874"]
[TimeControl "300"]
[EndTime "21:04:18 PDT"]
[Termination "KeithArkell won by resignation"]

1. d4 {[%clk 0:04:56.3]} 1... g6 {[%clk 0:04:59.9]} 2. Nf3 {[%clk 0:04:55]} 2...
Bg7 {[%clk 0:04:59.2]} 3. c4 {[%clk 0:04:54.2]} 3... c6 {[%clk 0:04:58.5]} 4.
Nc3 {[%clk 0:04:53.3]} 4... d5 {[%clk 0:04:57.8]} 5. cxd5 {[%clk 0:04:52.3]}
5... cxd5 {[%clk 0:04:56.9]} 6. g3 {[%clk 0:04:50.8]} 6... e6 {[%clk 0:04:53]}
7. Bg2 {[%clk 0:04:49.3]} 7... Nf6 {[%clk 0:04:52.4]} 8. O-O {[%clk 0:04:48.5]}
8... O-O {[%clk 0:04:51.1]} 9. Ne5 {[%clk 0:04:47.7]} 9... Nc6 {[%clk
0:04:48.6]} 10. Nxc6 {[%clk 0:04:46.5]} 10... bxc6 {[%clk 0:04:46.6]} 11. Bf4
{[%clk 0:04:45.5]} 11... Qb6 {[%clk 0:04:43.4]} 12. Na4 {[%clk 0:04:43.6]} 12...
Qb4 {[%clk 0:04:40.9]} 13. Be5 {[%clk 0:04:42.2]} 13... Ba6 {[%clk 0:04:35.4]}
14. b3 {[%clk 0:04:40.6]} 14... Nd7 {[%clk 0:04:26.4]} 15. Bxg7 {[%clk
0:04:38.9]} 15... Kxg7 {[%clk 0:04:24.8]} 16. Rc1 {[%clk 0:04:37.5]} 16... Rac8
{[%clk 0:04:17.3]} 17. Nc5 {[%clk 0:04:36.4]} 17... Nxc5 {[%clk 0:04:15.1]} 18.
Rxc5 {[%clk 0:04:36.2]} 18... e5 {[%clk 0:04:06.3]} 19. Qc2 {[%clk 0:04:21.1]}
19... Qxd4 {[%clk 0:03:55.5]} 20. Rc1 {[%clk 0:04:18.1]} 20... e4 {[%clk
0:03:47.7]} 21. e3 {[%clk 0:04:14.1]} 21... Qd3 {[%clk 0:03:33.2]} 22. Bf1
{[%clk 0:04:09.1]} 22... Qxc2 {[%clk 0:03:30.2]} 23. R1xc2 {[%clk 0:04:08.2]}
23... Bxf1 {[%clk 0:03:29.1]} 24. Kxf1 {[%clk 0:04:06.7]} 24... Rfd8 {[%clk
0:03:18.7]} 25. Rxc6 {[%clk 0:04:05.8]} 25... Rxc6 {[%clk 0:03:17.2]} 26. Rxc6
{[%clk 0:04:05.7]} 26... Rd7 {[%clk 0:03:11.9]} 27. Ra6 {[%clk 0:04:02.2]} 27...
g5 {[%clk 0:03:05.3]} 28. g4 {[%clk 0:04:00.9]} 28... f6 {[%clk 0:03:00.6]} 29.
Kg2 {[%clk 0:03:57.4]} 29... Kg6 {[%clk 0:02:58.9]} 30. Kg3 {[%clk 0:03:56.6]}
30... h5 {[%clk 0:02:57.4]} 31. h4 {[%clk 0:03:55.7]} 31... gxh4+ {[%clk
0:02:54.8]} 32. Kxh4 {[%clk 0:03:54]} 32... hxg4 {[%clk 0:02:54.4]} 33. Kxg4
{[%clk 0:03:53.2]} 33... Rc7 {[%clk 0:02:51.4]} 34. Ra5 {[%clk 0:03:47.3]} 34...
f5+ {[%clk 0:02:49]} 35. Kf4 {[%clk 0:03:45.7]} 35... Rc2 {[%clk 0:02:44.5]} 36.
Ra6+ {[%clk 0:03:32]} 36... Kh5 {[%clk 0:02:30.5]} 37. Kxf5 {[%clk 0:03:27.6]}
37... Rxf2+ {[%clk 0:02:28.3]} 38. Ke5 {[%clk 0:03:26.9]} 38... Rf3 {[%clk
0:02:25.5]} 39. Rxa7 {[%clk 0:03:25.7]} 39... Rxe3 {[%clk 0:02:24]} 40. Kxd5
{[%clk 0:03:24.9]} 40... Re1 {[%clk 0:02:21]} 41. Rg7 {[%clk 0:03:18.8]} 41...
e3 {[%clk 0:02:18.6]} 42. Kd4 {[%clk 0:03:18.1]} 42... e2 {[%clk 0:02:17.4]} 43.
Kd3 {[%clk 0:03:17.3]} 43... Ra1 {[%clk 0:02:14.7]} 44. Kxe2 {[%clk 0:03:16.2]}
44... Rxa2+ {[%clk 0:02:13.4]} 45. Kd3 {[%clk 0:03:15.5]} 45... Ra3 {[%clk
0:02:05.5]} 46. Kc4 {[%clk 0:03:14.5]} 46... Kh6 {[%clk 0:02:04.3]} 47. Rg1
{[%clk 0:03:12.5]} 1-0